bitfinex/quotes_ETHUSD_20220212
["timestamp","ask_amount","ask_price","bid_price","bid_amount"]
[1644692791945,3.92452754,2974.5,2973.5,0.02649754]
[1644692792145,0.00376103,2973.8,2973.5,0.02649754]
[1644692792347,0.00376103,2973.8,2973.3,2.00246777]
[1644692793148,1.43065506,2974.1,2973.3,2.00246777]
[1644692793347,1.43065506,2974.1,2973.3,1.34071704]
[1644692793549,0.0037609,2973.8,2973.3,1.34071704]
[1644692794447,1.43067615,2974.4,2973.3,1.34071704]
[1644692794689,0.0037609,2973.8,2973.3,1.34071704]
[1644692794889,0.0037609,2973.8,2973.4,0.82951722]
[1644692795291,0.0037609,2973.8,2973.3,1.34071704]
[1644692795491,1.43067615,2974.2,2973.3,1.34071704]
[1644692795691,1.43067615,2974.1,2973.3,1.34071704]
[1644692795994,0.0098478,2973.8,2973.3,1.34071704]
[1644692796498,0.0098478,2973.8,2973.4,0.62764209]
[1644692796895,3.55194453,2974.5,2973.4,0.62764209]
[1644692797097,0.00984773,2973.8,2973.4,0.62764209]
[1644692797496,0.00984773,2973.8,2973.5,0.02649754]
[1644692797897,3.61261783,2974.5,2973.5,0.02649754]
[1644692798096,1.43066593,2974.4,2973.5,0.02649754]
[1644692798297,0.00984786,2973.8,2973.5,0.02649754]
[1644692799146,3.60888078,2974.5,2973.5,0.02649754]
[1644692799343,0.00963211,2973.8,2973.5,0.02649754]
[1644692799745,0.00963211,2973.8,2973.5,0.19459754]
[1644692799944,0.00963211,2973.8,2973.5,0.02649754]
[1644692800344,3.630687,2974.5,2973.5,0.02649754]
[1644692800546,0.00963211,2973.8,2973.5,0.02649754]
[1644692801550,0.78568234,2974.1,2973.5,0.02649754]
[1644692801753,0.00963211,2973.8,2973.5,0.02649754]
[1644692802192,0.00963211,2973.8,2973.4,0.19451704]
[1644692802793,0.78568234,2974.1,2973.4,0.19451704]
[1644692802992,3.60499083,2974.5,2973.4,0.19451704]
[1644692802995,0.00965377,2973.8,2973.4,0.19451704]
[1644692803194,0.00807356,2973.8,2973.4,0.19451704]
[1644692803992,0.85705977,2974.3,2973.4,0.19451704]
[1644692804193,1.4306519,2974.2,2973.4,0.19451704]
[1644692805598,1.4306519,2974.1,2973.4,0.19451704]
[1644692805799,1.4306519,2974.0,2973.4,0.19451704]
[1644692806053,3.60499083,2974.5,2973.4,0.19451704]
[1644692806255,1.4306174,2974.4,2973.4,0.19451704]
[1644692806654,0.00427181,2974.1,2973.4,0.19451704]
[1644692806855,1.4306174,2974.0,2973.4,0.19451704]
[1644692807056,1.4306174,2974.0,2973.6,0.02645729]
[1644692807855,1.44083531,2973.9,2973.6,0.02645729]
[1644692808055,0.01018591,2973.9,2973.6,0.02645729]
[1644692808456,0.68109213,2973.9,2973.6,0.02645729]
[1644692808655,0.6766677,2973.9,2973.6,0.02645729]
[1644692808855,0.67090622,2973.9,2973.6,0.02645729]
[1644692809056,0.01018592,2973.9,2973.6,0.02645729]
[1644692809458,0.01018592,2973.9,2973.7,0.84058]
[1644692809711,0.01018592,2973.9,2973.6,0.02645729]
[1644692809908,0.1681,2974.5,2973.6,0.02645729]
[1644692810209,1.43060449,2974.4,2973.7,0.76170222]
[1644692811417,0.00427063,2974.2,2973.7,0.76170222]
[1644692811615,1.43060449,2974.1,2973.7,0.76170222]
[1644692812219,1.43060449,2974.1,2973.8,0.02637679]
[1644692812617,4.56623485,2974.6,2973.8,0.02445436]
[1644692812618,1.4407902,2974.0,2973.8,0.02445436]
[1644692812816,1.43060449,2973.9,2973.8,0.0225331]
[1644692813317,3.7309647,2975.1,2974.0,6.9601]
[1644692813558,6.6528664,2975.9,2974.1,4.1757433]
[1644692813559,1.4884152,2975.3,2974.1,4.1757433]
[1644692813759,1.43860229,2975.6,2974.1,4.1757433]
[1644692813760,0.64133904,2975.7,2974.5,6.065]
[1644692813960,0.64133904,2975.8,2974.6,3.668]
[1644692814153,0.64133904,2976.0,2974.6,9.607]
[1644692814357,0.64133904,2976.0,2974.7,6.065]
[1644692814558,0.64133904,2976.1,2974.9,0.84006]
[1644692814760,0.64133904,2976.0,2975.0,0.485]
[1644692815156,0.64133904,2975.9,2975.0,0.485]
[1644692815358,0.84767324,2975.7,2975.0,0.485]
[1644692816359,0.00427352,2975.5,2975.0,0.485]
[1644692816660,0.00427352,2975.5,2974.5,1.00839]
[1644692816661,1.455,2974.9,2974.5,0.168]
[1644692816859,0.64989336,2974.7,2974.5,0.168]
[1644692817310,1.455,2974.9,2974.5,0.168]
[1644692817509,0.0101902,2974.8,2974.5,0.17819156]
[1644692818305,0.86435107,2974.6,2974.5,0.17819156]
[1644692818511,0.86435107,2974.6,2974.5,0.168]
[1644692818712,0.86435107,2974.6,2974.5,0.17819146]
[1644692819315,0.01019027,2974.8,2974.5,0.17819146]
[1644692819611,3.22649439,2974.8,2974.0,0.168]
[1644692819815,1.455,2974.9,2974.0,0.168]
[1644692820012,0.01019013,2974.8,2974.4,0.01019166]
[1644692820213,3.22802043,2974.8,2974.4,0.01019166]
[1644692820416,0.67498535,2974.5,2974.4,0.01019166]
[1644692820813,0.67498535,2974.5,2974.0,0.168]
[1644692821057,0.67498535,2974.5,2974.3,0.01018536]
[1644692821459,3.26645701,2974.8,2974.3,0.01018536]
[1644692821658,0.01018349,2974.8,2974.3,0.01018536]
[1644692822058,3.23459974,2974.8,2974.5,0.02169957]
[1644692822258,0.01018363,2974.8,2974.5,0.02169957]
[1644692822664,0.70354393,2974.7,2974.5,0.02169957]
[1644692824567,0.70354393,2974.7,2974.5,0.03161339]
[1644692825598,0.70354393,2974.7,2974.5,0.02169957]
[1644692825599,0.65354393,2974.7,2974.5,0.02169957]
[1644692825798,3.22123893,2974.6,2974.5,0.03161339]
[1644692826401,0.82154393,2974.7,2974.5,0.03161339]
[1644692826902,0.82154393,2974.7,2974.5,0.02169957]
[1644692827103,0.82154393,2974.7,2974.5,0.03161339]
[1644692827303,0.82154393,2974.7,2974.5,0.04602615]
[1644692828103,0.82154393,2974.7,2974.5,0.03611233]
[1644692828304,0.82154393,2974.7,2974.5,0.04602615]
[1644692828552,0.77154393,2974.7,2974.5,0.04602615]
[1644692829155,0.77154393,2974.7,2974.5,0.03611233]
[1644692829556,0.77154393,2974.7,2974.5,0.04574415]
[1644692829756,3.97259015,2974.7,2974.5,0.04574415]
[1644692829956,0.77154393,2974.7,2974.5,0.04574415]
[1644692830356,0.60354393,2974.7,2974.5,0.03611233]
[1644692831061,1.22066956,2974.8,2974.5,0.03611233]
[1644692831261,0.00366956,2974.8,2974.5,0.03611233]
[1644692831556,1.455,2974.9,2974.5,0.52111233]
[1644692831955,0.00366962,2974.8,2974.5,0.52111233]
[1644692832807,1.455,2974.9,2974.5,0.52111233]
[1644692833008,0.00995733,2974.8,2974.5,1.37145082]
[1644692833606,0.00995733,2974.8,2974.5,0.53107082]
[1644692834007,1.455,2974.9,2974.5,0.52111233]
[1644692834308,0.00995733,2974.8,2974.5,0.53107082]
[1644692834507,0.00995733,2974.8,2974.6,0.168]
[1644692834907,0.00995733,2974.8,2974.5,0.53107082]
[1644692835310,1.455,2974.9,2974.5,0.52111233]
[1644692835508,0.00398962,2974.8,2974.5,0.52111233]
[1644692836351,1.455,2974.9,2974.5,0.52111233]
[1644692836755,0.00366709,2974.8,2974.5,0.52111233]
[1644692836954,0.00366709,2974.8,2974.7,0.03605869]
[1644692837553,1.455,2974.9,2974.7,0.03605869]
[1644692837957,1.4646415,2974.9,2974.7,0.03605869]
[1644692838860,1.455,2974.9,2974.7,0.03605869]
[1644692839058,1.4646414,2974.9,2974.7,0.03605869]
[1644692840106,1.455,2974.9,2974.7,0.03605869]
[1644692841516,1.455,2974.9,2974.7,0.83445869]
[1644692842110,1.455,2974.9,2974.8,0.72040839]
[1644692843311,1.455,2974.9,2974.8,0.88840839]
[1644692843749,1.455,2974.9,2974.8,0.168]
[1644692843956,1.455,2974.9,2974.6,0.49521653]
[1644692844355,1.41264563,2974.9,2974.6,0.49521653]
[1644692844955,1.41264563,2974.9,2974.6,0.485]
[1644692845160,1.42286083,2974.9,2974.6,0.49521639]
[1644692846057,3.28082743,2974.8,2974.2,0.485]
[1644692846257,3.28082743,2974.8,2973.9,1.2993]
[1644692846458,1.43025177,2974.7,2974.6,0.01021639]
[1644692846661,5.91241082,2974.7,2974.6,0.01021639]
[1644692847058,0.02043278,2974.5,2973.9,0.168]
[1644692847300,3.3302646,2974.5,2973.9,0.168]
[1644692847901,0.02043278,2974.5,2973.9,0.168]
[1644692848306,1.4303829,2974.4,2973.9,0.168]
[1644692848701,3.21085546,2974.3,2973.9,0.168]
[1644692848905,1.4303829,2974.2,2973.9,0.168]
[1644692849106,3.93629554,2974.1,2973.9,0.168]
[1644692849308,5.33194489,2974.0,2973.9,0.168]
[1644692849505,5.33194489,2974.0,2973.5,1.2217]
[1644692849705,0.85134832,2973.6,2973.3,3.2495]
[1644692849905,0.85134832,2973.6,2973.1,0.1681]
[1644692850110,0.85134832,2973.6,2972.9,1.4072]
[1644692851153,0.85134832,2973.6,2973.1,0.01021923]
[1644692852154,0.85134832,2973.6,2972.9,1.4072]
[1644692852354,0.85134832,2973.6,2973.2,0.01021903]
[1644692853353,0.85134832,2973.6,2972.9,1.2391]
[1644692853556,0.85134832,2973.6,2973.3,0.01021893]
[1644692854557,0.85134832,2973.6,2972.9,1.2391]
[1644692854800,0.85134832,2973.6,2973.3,0.01021883]
[1644692855404,3.30617797,2973.5,2973.3,0.01021883]
[1644692855904,3.30617797,2973.5,2972.5,0.1681]
[1644692856111,1.43089405,2973.4,2973.3,0.01021883]
[1644692856305,4.85063426,2973.4,2973.3,0.01021883]
[1644692856510,3.41974021,2973.4,2973.3,0.01021883]
[1644692856705,4.85063592,2973.4,2973.3,0.01021883]
[1644692856905,4.85063592,2973.4,2972.4,1.3994]
[1644692857107,0.72540346,2973.0,2972.4,1.1494]
[1644692857306,8.0091633,2973.7,2972.3,0.8438433]
[1644692857506,1.43088822,2973.6,2972.3,0.8438433]
[1644692857711,3.3979026,2973.5,2972.3,0.8438433]
[1644692857911,1.43088822,2973.4,2972.3,0.8438433]
[1644692858473,0.86991939,2973.1,2972.8,0.01021994]
[1644692858667,4.0882,2973.7,2972.8,0.01021994]
[1644692858965,1.43088468,2973.6,2972.8,0.01021994]
[1644692859263,1.43088468,2973.6,2972.3,0.8438433]
[1644692859664,1.43088468,2973.6,2973.1,0.01021933]
[1644692859864,0.80269691,2973.5,2973.1,0.01021933]
[1644692860464,0.80269691,2973.5,2972.5,0.1681]
[1644692860665,1.43094137,2973.4,2972.5,0.1681]
[1644692860868,1.43094137,2973.4,2973.2,0.00997585]
[1644692861273,6.43094137,2973.4,2973.2,0.00997585]
[1644692861472,6.95,2973.2,2972.2,0.03991682]
[1644692861669,0.1681,2973.1,2971.8,0.1681]
[1644692861870,1.43094137,2973.0,2971.8,0.1681]
[1644692862070,0.1681,2972.9,2971.8,0.1681]
[1644692862500,0.72176168,2972.5,2971.8,0.1681]
[1644692862905,0.72176168,2972.5,2971.7,0.1681]
[1644692865206,0.49409508,2973.0,2971.7,0.1681]
[1644692865613,5.0,2972.9,2972.0,0.01022154]
[1644692865808,0.1681,2972.9,2972.0,0.01022154]
[1644692866463,0.82427658,2972.7,2971.7,0.85502844]
[1644692866659,0.1681,2972.6,2972.3,0.01022084]
[1644692867661,0.1681,2972.6,2971.6,0.00345341]
[1644692867860,0.82427658,2972.7,2971.7,0.1681]
[1644692868061,0.82427658,2972.7,2972.3,0.01022084]
[1644692868861,0.82427658,2972.7,2971.7,0.1681]
[1644692869064,0.1681,2972.6,2971.6,0.17155341]
[1644692869463,0.1681,2972.6,2971.6,0.16579282]
[1644692869707,0.1681,2972.6,2971.6,0.16930558]
[1644692869708,3.6681,2972.6,2971.6,0.16930558]
[1644692869907,3.6681,2972.6,2971.6,0.00351276]
[1644692870506,3.6681,2972.6,2972.0,0.01021482]
[1644692870707,0.1681,2972.6,2972.0,0.01021482]
[1644692871312,0.1681,2972.6,2971.6,0.00351276]
[1644692871613,0.1681,2972.6,2972.2,0.01021442]
[1644692871810,3.532714,2972.6,2972.2,0.01021442]
[1644692872214,0.1681,2972.6,2972.2,0.01021442]
[1644692872513,4.3841,2972.9,2971.6,1.68578276]
[1644692872713,4.3841,2972.9,2971.7,0.00351276]
[1644692872913,4.216,2972.9,2971.7,0.84470276]
[1644692873114,4.216,2972.9,2972.3,0.01021422]
[1644692873553,0.7256929,2972.6,2972.3,0.01021422]
[1644692873760,4.216,2972.9,2971.7,1.20121276]
[1644692874054,0.1681,2973.5,2972.4,0.84099]
[1644692874258,8.5885,2973.7,2972.5,0.01021381]
[1644692874453,8.5885,2973.7,2972.5,0.17831381]
[1644692874655,8.5885,2973.7,2972.9,0.69180132]
[1644692874853,8.5885,2973.7,2972.6,0.485]
[1644692874854,4.6684,2973.7,2973.0,0.6531]
[1644692875054,3.5,2973.7,2972.7,0.1681]
[1644692875253,3.5,2973.7,2972.8,0.485]
[1644692875554,0.86609509,2973.9,2972.9,0.1681]
[1644692875756,0.86609509,2973.9,2973.0,0.485]
[1644692876156,0.86609509,2973.9,2973.0,0.49456568]
[1644692876557,0.86609509,2973.9,2973.0,0.485]
[1644692876760,0.86609509,2973.9,2973.1,0.00897995]
[1644692877603,0.86609509,2973.9,2973.0,0.485]
[1644692877802,0.86609509,2973.9,2973.0,0.6531]
[1644692878003,0.86609509,2973.9,2973.1,0.00906175]
[1644692879004,0.86609509,2973.9,2973.0,0.6531]
[1644692879205,0.86609509,2973.9,2973.1,0.00906175]
[1644692880207,0.1681,2974.1,2973.0,0.1681]
[1644692880505,0.1681,2974.1,2973.1,0.0091383]
[1644692880506,0.21377555,2974.1,2973.1,0.0091383]
[1644692880962,0.04567555,2974.1,2973.1,0.0091383]
[1644692881857,0.04567555,2974.1,2973.1,0.00913842]
[1644692881858,0.00913531,2974.1,2973.1,0.00913842]
[1644692882660,0.87098638,2974.0,2973.1,0.00913842]
[1644692882862,0.67417754,2973.5,2973.1,0.00912778]
[1644692883362,3.41407014,2973.4,2973.1,0.00912778]
[1644692883763,3.58217014,2973.4,2973.0,0.14071667]
[1644692883962,0.69437935,2973.0,2972.4,0.1681]
[1644692884461,0.69437935,2973.0,2972.3,0.1681]
[1644692884704,0.69437935,2973.0,2972.0,0.03652194]
[1644692884705,0.69437935,2973.0,2972.2,0.1681]
[1644692884903,0.69437935,2973.0,2972.1,0.1681]
[1644692885102,0.69437935,2973.0,2972.0,0.1681]
[1644692885302,9.62040396,2973.7,2972.0,0.1681]
[1644692885303,9.62040396,2973.7,2972.5,0.00912096]
[1644692885503,1.43098447,2973.6,2972.5,0.00912096]
[1644692885702,3.49534,2973.5,2972.5,0.00912096]
[1644692886108,3.32724,2973.5,2972.5,0.00912096]
[1644692886509,3.32724,2973.5,2972.9,0.0091279]
[1644692886705,0.8186384,2973.3,2972.9,0.0091279]
[1644692887208,3.37063714,2973.2,2972.9,0.0091279]
[1644692887408,3.37063714,2973.2,2972.5,0.1681]
[1644692887707,3.37063714,2973.2,2973.0,0.00912772]
[1644692887905,0.8186384,2973.3,2973.0,0.00912772]
[1644692888553,0.8186384,2973.3,2972.5,0.1681]
[1644692888954,0.8186384,2973.3,2973.0,0.00912814]
[1644692889354,3.23790824,2973.2,2973.0,0.00912814]
[1644692889556,1.43105397,2973.1,2973.0,0.00912814]
[1644692889758,5.12983316,2973.1,2972.5,0.1681]
[1644692889954,1.43105397,2973.0,2972.5,0.1681]
[1644692890154,1.43105397,2973.0,2972.0,0.25]
[1644692890155,3.41764705,2972.9,2972.0,0.28649662]
[1644692890354,0.8457707,2972.5,2972.0,0.03649662]
[1644692890555,5.24941938,2973.2,2972.0,0.03649662]
[1644692890757,1.43113072,2973.1,2972.0,0.03649662]
[1644692890957,3.50879102,2973.0,2971.8,4.36505606]
[1644692891160,1.43113072,2972.9,2971.8,4.36505606]
[1644692891360,3.27149681,2972.8,2972.5,0.00912228]
[1644692891562,0.84342196,2973.0,2972.5,0.00912228]
[1644692891762,3.22925261,2972.8,2972.5,0.00912228]
[1644692892208,3.22925261,2972.8,2971.8,4.36505606]
[1644692892412,3.22925261,2972.8,2972.5,0.00912237]
[1644692892608,3.41790596,2972.9,2972.5,0.00912237]
[1644692892809,1.43113096,2972.8,2972.5,0.00912237]
[1644692893410,1.43113096,2972.8,2971.8,0.67925606]
[1644692893612,1.43113096,2972.8,2972.5,0.00912282]
[1644692894616,1.43113096,2972.8,2971.9,0.1681]
[1644692894815,1.43113096,2972.8,2972.5,0.00912282]
[1644692895020,0.1681,2972.9,2972.5,0.00912282]
[1644692895816,0.1681,2972.9,2972.4,0.485]
[1644692896063,0.1681,2972.9,2972.6,0.00912272]
[1644692896664,4.9144,2973.7,2972.6,0.00912272]
[1644692896665,4.9144,2973.7,2972.7,0.485]
[1644692896866,1.4307609,2973.6,2972.7,0.6531]
[1644692897065,0.1681,2974.2,2972.7,0.6531]
[1644692897267,0.82540302,2974.0,2973.0,0.62873225]
[1644692897465,0.82540302,2974.0,2973.1,0.485]
[1644692897466,1.43070473,2973.9,2973.1,0.485]
[1644692897667,1.43070473,2973.9,2973.2,0.485]
[1644692897867,1.43070473,2973.9,2972.8,1.68153]
[1644692898065,1.43070473,2973.9,2972.9,0.485]
[1644692898466,1.43070473,2973.9,2973.1,0.0091222]
[1644692898665,1.43070473,2973.9,2973.2,0.485]
[1644692900910,1.43070473,2973.9,2973.2,0.6531]
[1644692902011,1.43070473,2973.9,2973.2,0.485]
[1644692902210,1.43070473,2973.9,2973.2,3.885]
[1644692903457,1.43070473,2973.9,2973.2,3.88058442]
[1644692905658,1.43070473,2973.9,2973.3,0.1681]
[1644692905868,1.43070473,2973.9,2973.4,0.485]
[1644692906360,0.82540302,2974.0,2973.4,0.485]
[1644692906560,1.4306464,2973.9,2973.4,0.485]
[1644692914262,0.82540302,2974.0,2973.4,0.485]
[1644692914904,1.43066384,2973.9,2973.4,0.485]
[1644692917508,4.73584831,2973.9,2973.3,0.1681]
[1644692917708,1.43066384,2973.8,2973.3,0.1681]
[1644692917908,3.48373605,2973.7,2973.3,0.1681]
[1644692918108,1.43066384,2973.6,2973.3,0.1681]
[1644692918311,0.64298323,2973.5,2973.3,0.1681]
[1644692918557,4.73440474,2973.4,2973.3,0.1681]
[1644692918955,4.64890283,2973.4,2973.3,0.1681]
[1644692919153,4.65707229,2973.4,2973.3,0.1681]
[1644692919354,4.70034197,2973.4,2973.3,0.1681]
[1644692919753,4.70034197,2973.4,2973.2,3.4]
[1644692920161,1.43066384,2973.3,2973.2,3.4]
[1644692920760,5.17964252,2973.3,2973.2,1.87360851]
[1644692921162,5.17964252,2973.3,2972.5,0.00351276]
[1644692921163,6.95,2973.2,2972.5,0.00351276]
[1644692921363,5.48094901,2973.1,2972.5,0.00351276]
[1644692921561,5.48094901,2973.1,2972.3,0.00351276]
[1644692921562,1.43066384,2973.0,2972.3,0.00351276]
[1644692921762,4.5102006,2972.9,2972.3,0.00351276]
[1644692921962,0.68975816,2972.4,2972.1,0.1681]
[1644692922201,0.68975816,2972.4,2972.2,0.00351276]
[1644692922401,0.68975816,2972.4,2972.0,0.0215785]
[1644692922803,4.62483266,2973.1,2972.0,0.0215785]
[1644692923005,1.43118046,2973.0,2972.0,0.0215785]
[1644692923206,3.64659526,2972.9,2972.0,0.0215785]
[1644692923403,1.43118046,2972.8,2971.9,0.17160957]
[1644692923606,1.43118046,2972.8,2972.4,0.005394]
[1644692923607,3.47965116,2972.7,2972.4,0.005394]
[1644692923805,4.30720194,2972.7,2972.4,0.005394]
[1644692924711,4.30720194,2972.7,2971.9,0.17160957]
[1644692924910,4.30720194,2972.7,2972.4,0.00964359]
[1644692925111,3.2106404,2972.6,2972.4,0.00964359]
[1644692925963,3.2106404,2972.6,2971.7,0.00350957]
[1644692926157,3.2106404,2972.6,2972.4,0.00985477]
[1644692926353,0.82755078,2972.7,2972.4,0.00985477]
[1644692926554,3.29603136,2972.6,2972.4,0.00985477]
[1644692926954,3.29603136,2972.6,2971.6,0.17160957]
[1644692926955,3.29603136,2972.6,2971.7,0.00350957]
[1644692927157,3.29603136,2972.6,2971.8,0.1681]
[1644692927356,0.82755078,2972.7,2972.4,0.00985477]
[1644692927556,3.9656251,2973.0,2972.4,0.00985477]
[1644692927755,1.43112752,2972.9,2972.4,0.00985477]
[1644692928055,4.3385,2973.2,2972.4,0.00985477]
[1644692928056,3.1581,2973.2,2972.4,0.00985477]
[1644692928357,0.1681,2973.5,2972.2,0.485]
[1644692928557,3.2555,2973.6,2972.5,0.85080449]
[1644692928558,0.70799625,2973.3,2972.5,0.85080449]
[1644692928760,0.70799625,2973.3,2972.5,0.85431406]
[1644692929455,0.70799625,2973.3,2972.5,0.00350957]
[1644692929700,0.70799625,2973.3,2972.8,0.00959527]
[1644692930701,0.70799625,2973.3,2972.3,0.17160957]
[1644692930901,0.70799625,2973.3,2972.9,0.009595]
[1644692931506,3.41196264,2973.8,2972.9,0.009595]
[1644692931709,1.43089029,2973.7,2972.9,0.009595]
[1644692931907,1.43089029,2973.7,2972.8,3.4]
[1644692932106,0.683092,2973.9,2973.1,0.00959494]
[1644692932306,1.43076112,2973.8,2973.1,0.00959494]
[1644692932505,0.84560544,2973.5,2973.1,0.00959494]
[1644692933107,0.84560544,2973.5,2972.8,3.4]
[1644692933308,0.84560544,2973.5,2973.1,0.00961229]
[1644692934355,0.84560544,2973.5,2972.8,3.4]
[1644692934558,0.84560544,2973.5,2973.1,0.00961229]
[1644692935154,1.4308707,2973.4,2973.1,0.00961229]
[1644692935357,1.4308707,2973.4,2972.8,3.4]
[1644692935555,0.84560544,2973.5,2972.8,3.4]
[1644692935756,0.84560544,2973.5,2973.1,0.00961229]
[1644692935757,1.4308544,2973.4,2973.1,0.00961229]
[1644692936564,1.4308544,2973.4,2972.8,3.4]
[1644692936962,1.4308544,2973.4,2973.1,0.00961103]
[1644692937803,1.4308544,2973.4,2972.8,3.4]
[1644692938203,0.84560544,2973.5,2973.1,0.00961103]
[1644692938403,1.43086432,2973.4,2973.1,0.00961103]
[1644692939003,1.43086432,2973.4,2972.8,3.4]
[1644692939405,1.43086432,2973.4,2973.1,0.00961103]
[1644692940206,1.43086432,2973.4,2972.8,3.4]
[1644692940408,1.43086432,2973.4,2973.1,0.00961113]
[1644692941460,1.42939717,2973.4,2972.8,3.4]
[1644692941760,0.84560544,2973.5,2972.8,3.4]
[1644692941761,0.84560544,2973.5,2972.9,0.1681]
[1644692941959,0.84560544,2973.5,2973.1,0.00961113]
[1644692942758,0.84560544,2973.5,2972.9,0.1681]
[1644692942960,0.84560544,2973.5,2973.1,0.0096112]
[1644692943759,0.84560544,2973.5,2972.9,0.1681]
[1644692944159,3.96516747,2973.9,2973.1,0.00961119]
[1644692945008,3.96516747,2973.9,2972.9,0.1681]
[1644692945307,3.96516747,2973.9,2973.1,0.00961147]
[1644692945508,0.66699375,2973.7,2973.1,0.00961147]
[1644692946313,0.66699375,2973.7,2972.9,0.1681]
[1644692946515,0.66699375,2973.7,2973.1,0.00961133]
[1644692947019,3.96516747,2973.9,2973.1,0.00961133]
[1644692947215,0.683092,2973.9,2973.1,0.00961133]
[1644692947414,0.683092,2973.9,2972.9,0.1681]
[1644692947613,3.90972311,2973.9,2972.9,0.1681]
[1644692947814,0.683092,2973.9,2973.1,0.00961146]
[1644692948315,0.78737713,2973.4,2973.1,0.00961146]
[1644692948760,0.78737713,2973.4,2972.9,0.1681]
[1644692948961,0.78737713,2973.4,2973.1,0.0096111]
[1644692949859,0.78737713,2973.4,2972.9,0.1681]
[1644692950059,0.78737713,2973.4,2973.1,0.0096111]
[1644692951067,0.78737713,2973.4,2972.9,0.1681]
[1644692951268,0.78737713,2973.4,2973.1,0.00961111]
[1644692951567,0.1681,2973.8,2973.1,0.00961111]
[1644692951568,0.1681,2973.8,2973.1,0.87991111]
[1644692951767,0.1681,2973.8,2973.2,0.1681]
[1644692956362,0.1681,2973.8,2973.1,0.00961145]
[1644692956363,0.1681,2974.0,2973.1,0.00961145]
[1644692956560,0.1681,2973.7,2973.1,0.00961145]
[1644692956759,0.1681,2973.9,2973.1,0.00961145]
[1644692956960,0.1681,2973.9,2972.8,3.4]
[1644692956961,3.93194548,2973.9,2972.8,3.4]
[1644692957160,0.1681,2973.8,2972.8,3.4]
[1644692957761,0.80943904,2973.8,2972.8,3.4]
[1644692957962,3.85725579,2973.7,2972.8,3.4]
[1644692958162,0.1681,2973.6,2972.8,3.4]
[1644692958559,0.1681,2973.6,2973.1,0.0096166]
[1644692958760,0.1681,2973.6,2972.8,3.4]
[1644692958761,0.81150355,2973.0,2972.8,3.4]
[1644692959821,3.30264015,2972.9,2972.8,3.4]
[1644692960522,3.30264015,2972.9,2972.8,3.39423794]
[1644692961524,4.73380116,2972.9,2972.8,3.39423794]
[1644692969616,1.43116101,2972.9,2972.8,3.39423794]
[1644692973870,1.43116101,2972.9,2972.4,0.00350957]
[1644692973871,6.95,2972.8,2972.4,0.00350957]
[1644692974070,6.95,2972.8,2972.2,0.25]
[1644692974071,1.43116101,2972.7,2972.2,0.00350957]
[1644692974273,1.43116101,2972.7,2972.0,0.04090405]
[1644692975106,1.43116101,2972.7,2971.7,0.00350957]
[1644692975307,0.82268296,2972.3,2972.2,0.01022445]
[1644692975510,6.95,2972.8,2972.2,0.01022445]
[1644692975708,1.43124194,2972.7,2972.2,0.01022445]
[1644692976111,1.43124194,2972.7,2972.2,3.41022445]
[1644692976313,1.43124194,2972.7,2972.2,3.4]
[1644692976513,1.43124194,2972.7,2972.3,0.01022425]
[1644692976915,1.43124194,2972.7,2972.3,0.90462425]
[1644692977112,0.01923319,2973.0,2972.3,0.90462425]
[1644692977315,1.43118036,2972.9,2972.4,0.00350957]
[1644692977813,1.43118036,2972.9,2972.5,0.01022384]
[1644692978658,1.43118036,2972.9,2972.4,0.00350957]
[1644692978858,1.43118036,2972.9,2972.6,0.01022374]
[1644692979058,4.67736356,2972.9,2972.6,0.01022374]
[1644692979259,1.43118036,2972.8,2972.6,0.01022374]
[1644692979660,1.43118036,2972.7,2972.6,0.01022374]
[1644692979860,1.43118036,2972.7,2972.4,0.00350957]
[1644692980059,0.83620933,2973.0,2972.2,3.4]
[1644692980259,1.43117112,2972.9,2972.6,0.01022374]
[1644692981065,1.43117112,2972.9,2972.3,0.00350957]
[1644692981466,1.43117112,2972.9,2972.6,0.01022364]
[1644692982312,1.43117112,2972.9,2972.3,0.00350957]
[1644692982612,1.43117112,2972.9,2972.6,0.00596206]
[1644692983014,0.01923319,2973.0,2972.6,0.00596206]
[1644692983413,0.01923319,2973.0,2972.5,0.00350957]
[1644692983815,0.01923319,2973.0,2972.7,0.00596196]
[1644692984713,0.01923319,2973.0,2972.5,0.00350957]
[1644692984915,0.01923319,2973.0,2972.7,0.00596186]
[1644692985963,0.01923319,2973.0,2972.6,0.1681]
[1644692986164,0.01923319,2973.0,2972.7,0.01022889]
[1644692986863,1.43106242,2972.9,2972.7,0.01022889]
[1644692987068,1.43106242,2972.9,2972.5,0.00350957]
[1644692987264,1.43106242,2972.9,2972.3,0.00350957]
[1644692987265,0.63226303,2972.7,2972.3,0.00350957]
[1644692987463,0.63226303,2972.7,2972.2,3.4]
[1644692987865,0.01923319,2973.0,2972.3,0.1681]
[1644692988064,0.01923319,2973.0,2972.3,0.17160957]
[1644692988665,0.01923319,2973.0,2972.5,0.01022929]
[1644692989465,0.01923319,2973.0,2972.3,0.17160957]
[1644692989712,1.43107224,2972.9,2972.3,0.17160957]
[1644692989915,1.43107224,2972.9,2972.6,0.01022909]
[1644692990313,0.01923319,2973.0,2972.6,0.01022909]
[1644692990719,1.43105304,2972.9,2972.3,0.17160957]
[1644692991116,0.01923319,2973.0,2972.3,0.17160957]
[1644692991117,0.01923319,2973.0,2972.7,0.01022899]
[1644692991919,0.01923319,2973.0,2972.4,0.1681]
[1644692992319,0.01923319,2973.0,2972.7,0.01022889]
[1644692992918,1.4310498,2972.9,2972.7,0.00638416]
[1644692993118,1.4310498,2972.9,2972.3,0.17160957]
[1644692993561,1.4310498,2972.9,2972.7,0.01022889]
[1644692994359,1.4310498,2972.9,2972.3,0.17160957]
[1644692994565,1.4310498,2972.9,2972.3,0.00350957]
[1644692995863,1.4310498,2972.9,2972.5,0.01022939]
[1644692996667,1.4310498,2972.9,2972.3,0.00350957]
[1644692997068,1.4310498,2972.9,2972.6,0.01022919]
[1644692997911,1.4310498,2972.9,2972.3,0.00350957]
[1644692998310,1.4310498,2972.9,2972.6,0.01022926]
[1644692999113,1.4310498,2972.9,2972.3,0.00350957]
[1644692999413,1.4310498,2972.9,2972.6,0.01022926]
[1644693000413,1.4310498,2972.9,2972.3,0.00350957]
[1644693000613,1.4310498,2972.9,2972.6,0.01022926]
[1644693000814,1.3810498,2972.9,2972.6,0.01022926]
[1644693001067,0.01923319,2973.0,2972.6,0.01022926]
[1644693001567,0.01923319,2973.0,2972.3,0.17160957]
[1644693001767,0.01923319,2973.0,2972.6,0.01022933]
[1644693002768,0.01923319,2973.0,2972.3,0.17160957]
[1644693002968,0.01923319,2973.0,2972.6,0.01022933]